[Event "January 9 Early 2024"]
[Site "https://www.chess.com"]
[Date "2024.01.11"]
[Round "8"]
[White "Xu, Yi"]
[Black "Aradhya, Garg"]
[Result "0-1"]
[Board "165"]
[TimeControl "180+1"]
[WhiteFideId "8605564"]
[BlackFideId "25006746"]
[WhiteElo "2857"]
[BlackElo "2736"]
[WhiteTeam "CHN"]
[BlackTeam "IND"]
[WhiteClock "0:00:07"]
[BlackClock "0:00:10"]

1. e4 {[%clk 0:02:57]}  e5 {[%clk 0:03:00]} 2. Nf3 {[%clk 0:02:57]}  Nc6 {[%clk 0:03:00]} 3. Bc4 {[%clk 0:02:57]}  Nf6 {[%clk 0:03:01]} 4. d3 {[%clk 0:02:57]}  Bc5 {[%clk 0:03:01]} 5. O-O {[%clk 0:02:57]}  O-O {[%clk 0:03:01]} 6. h3 {[%clk 0:02:55]}  d6 {[%clk 0:02:55]} 7. c3 {[%clk 0:02:55]}  a6 {[%clk 0:02:56]} 8. a4 {[%clk 0:02:54]}  Ba7 {[%clk 0:02:55]} 9. Re1 {[%clk 0:02:53]}  b5 {[%clk 0:02:55]} 10. Bb3 {[%clk 0:02:42]}  b4 {[%clk 0:02:55]} 11. a5 {[%clk 0:02:38]}  Rb8 {[%clk 0:02:48]} 12. Nbd2 {[%clk 0:02:33]}  Ne7 {[%clk 0:02:41]} 13. Nf1 {[%clk 0:02:29]}  Ng6 {[%clk 0:02:40]} 14. Ng3 {[%clk 0:02:23]}  c6 {[%clk 0:02:40]} 15. d4 {[%clk 0:02:20]}  h6 {[%clk 0:02:35]} 16. Be3 {[%clk 0:02:10]}  bxc3 {[%clk 0:02:19]} 17. bxc3 {[%clk 0:02:10]}  exd4 {[%clk 0:02:14]} 18. cxd4 {[%clk 0:02:07]}  Re8 {[%clk 0:02:14]} 19. Bc2 {[%clk 0:02:02]}  c5 {[%clk 0:02:02]} 20. d5 {[%clk 0:01:54]}  Nd7 {[%clk 0:01:42]} 21. Nd2 {[%clk 0:01:42]}  Qc7 {[%clk 0:01:33]} 22. Qe2 {[%clk 0:01:31]}  Rb5 {[%clk 0:01:23]} 23. Nc4 {[%clk 0:01:23]}  Nge5 {[%clk 0:01:22]} 24. Nxe5 {[%clk 0:01:19]}  Rxe5 {[%clk 0:01:19]} 25. Ba4 {[%clk 0:01:04]}  Rxa5 {[%clk 0:01:06]} 26. Bd2 {[%clk 0:01:03]}  Rxa4 {[%clk 0:01:07]} 27. Rxa4 {[%clk 0:01:03]}  Nb6 {[%clk 0:01:07]} 28. Raa1 {[%clk 0:01:00]}  Nxd5 {[%clk 0:01:07]} 29. Qf3 {[%clk 0:00:50]}  Nf6 {[%clk 0:00:19]} 30. Bxh6 {[%clk 0:00:43]}  Bb7 {[%clk 0:00:18]} 31. Bd2 {[%clk 0:00:29]}  d5 {[%clk 0:00:17]} 32. Bf4 {[%clk 0:00:27]}  d4 {[%clk 0:00:15]} 33. Bxe5 {[%clk 0:00:19]}  Qxe5 {[%clk 0:00:15]} 34. Rab1 {[%clk 0:00:20]}  Bc6 {[%clk 0:00:14]} 35. Qd3 {[%clk 0:00:17]}  Bb5 {[%clk 0:00:14]} 36. Rxb5 {[%clk 0:00:16]}  axb5 {[%clk 0:00:14]} 37. Qxb5 {[%clk 0:00:17]}  Bb8 {[%clk 0:00:12]} 38. Rc1 {[%clk 0:00:15]}  Bd6 {[%clk 0:00:12]} 39. Qc6 {[%clk 0:00:14]}  g6 {[%clk 0:00:12]} 40. Qa8+ {[%clk 0:00:12]}  Kg7 {[%clk 0:00:12]} 41. Qc6 {[%clk 0:00:11]}  d3 {[%clk 0:00:11]} 42. Rd1 {[%clk 0:00:10]}  Qd4 {[%clk 0:00:11]} 43. Ne2 {[%clk 0:00:08]}  dxe2 {[%clk 0:00:10]} 44. Re1 {[%clk 0:00:07]}  Qd2 {[%clk 0:00:10]} 0-1

[Event "January 9 Early 2024"]
[Site "https://www.chess.com"]
[Date "2024.01.11"]
[Round "8"]
[White "de Lisle, Sarah"]
[Black "Gutierrez Carmona, Juan Alejandro"]
[Result "0-1"]
[Board "167"]
[TimeControl "180+1"]
[WhiteFideId "402605"]
[BlackFideId "5106770"]
[WhiteElo "1952"]
[BlackElo "2187"]
[WhiteTeam "ENG"]
[BlackTeam "MEX"]
[WhiteClock "0:00:02"]
[BlackClock "0:00:04"]

1. e4 {[%clk 0:03:00]}  e5 {[%clk 0:02:59]} 2. Bc4 {[%clk 0:02:59]}  Nc6 {[%clk 0:02:57]} 3. Nf3 {[%clk 0:02:57]}  Bc5 {[%clk 0:02:57]} 4. O-O {[%clk 0:02:56]}  Nf6 {[%clk 0:02:57]} 5. Re1 {[%clk 0:02:55]}  d6 {[%clk 0:02:57]} 6. d3 {[%clk 0:02:54]}  a6 {[%clk 0:02:52]} 7. c3 {[%clk 0:02:52]}  Ba7 {[%clk 0:02:49]} 8. Bb3 {[%clk 0:02:51]}  h6 {[%clk 0:02:48]} 9. h3 {[%clk 0:02:45]}  O-O {[%clk 0:02:48]} 10. Nbd2 {[%clk 0:02:44]}  Ne7 {[%clk 0:02:48]} 11. Nf1 {[%clk 0:02:43]}  Ng6 {[%clk 0:02:48]} 12. Ng3 {[%clk 0:02:40]}  c6 {[%clk 0:02:48]} 13. d4 {[%clk 0:02:29]}  Qc7 {[%clk 0:02:41]} 14. Nh2 {[%clk 0:02:19]}  c5 {[%clk 0:02:09]} 15. dxe5 {[%clk 0:02:04]}  dxe5 {[%clk 0:02:08]} 16. Qf3 {[%clk 0:02:03]}  c4 {[%clk 0:02:05]} 17. Bc2 {[%clk 0:02:02]}  Nh4 {[%clk 0:01:55]} 18. Qe2 {[%clk 0:01:53]}  b5 {[%clk 0:01:45]} 19. Nf5 {[%clk 0:01:48]}  Nxf5 {[%clk 0:01:42]} 20. exf5 {[%clk 0:01:48]}  e4 {[%clk 0:01:34]} 21. Bxe4 {[%clk 0:01:37]}  Re8 {[%clk 0:00:40]} 22. Qf3 {[%clk 0:01:24]}  Rxe4 {[%clk 0:00:34]} 23. Rxe4 {[%clk 0:01:23]}  Bb7 {[%clk 0:00:34]} 24. Bf4 {[%clk 0:01:06]}  Qc8 {[%clk 0:00:11]} 25. Ng4 {[%clk 0:00:40]}  Nxe4 {[%clk 0:00:09]} 26. Qe3 {[%clk 0:00:38]}  Bxe3 {[%clk 0:00:05]} 27. Bxe3 {[%clk 0:00:36]}  Qxf5 {[%clk 0:00:05]} 28. f3 {[%clk 0:00:30]}  Nf6 {[%clk 0:00:05]} 29. Nxf6+ {[%clk 0:00:30]}  Qxf6 {[%clk 0:00:05]} 30. Bd4 {[%clk 0:00:29]}  Qe6 {[%clk 0:00:04]} 31. Kf2 {[%clk 0:00:28]}  Re8 {[%clk 0:00:05]} 32. Kg3 {[%clk 0:00:26]}  Qe2 {[%clk 0:00:05]} 33. Rf1 {[%clk 0:00:23]}  Qxb2 {[%clk 0:00:05]} 34. h4 {[%clk 0:00:19]}  Re2 {[%clk 0:00:06]} 35. Kf4 {[%clk 0:00:18]}  Rxg2 {[%clk 0:00:05]} 36. Be5 {[%clk 0:00:16]}  Re2 {[%clk 0:00:04]} 37. Rg1 {[%clk 0:00:13]}  g6 {[%clk 0:00:03]} 38. h5 {[%clk 0:00:13]}  Qd2+ {[%clk 0:00:03]} 39. Kg3 {[%clk 0:00:11]}  g5 {[%clk 0:00:02]} 40. Bf6 {[%clk 0:00:09]}  Qe3 {[%clk 0:00:02]} 41. Rf1 {[%clk 0:00:07]}  Re1 {[%clk 0:00:02]} 42. Rf2 {[%clk 0:00:05]}  Re2 {[%clk 0:00:03]} 43. Rxe2 {[%clk 0:00:05]}  Qxe2 {[%clk 0:00:03]} 44. Be5 {[%clk 0:00:05]}  Qxf3+ {[%clk 0:00:03]} 45. Kh2 {[%clk 0:00:02]}  Qxh5+ {[%clk 0:00:03]} 46. Kg1 {[%clk 0:00:02]}  Qe2 {[%clk 0:00:04]} 0-1

[Event "January 9 Early 2024"]
[Site "https://www.chess.com"]
[Date "2024.01.11"]
[Round "8"]
[White "Wagner, Dennis"]
[Black "Laddha, Shubh Jayesh"]
[Result "1-0"]
[Board "168"]
[TimeControl "180+1"]
[WhiteFideId "24650684"]
[BlackFideId "30942799"]
[WhiteElo "2743"]
[BlackElo "2563"]
[WhiteTeam "GER"]
[BlackTeam "USA"]
[WhiteClock "0:00:22"]
[BlackClock "0:00:17"]

1. c4 {[%clk 0:03:00]}  Nf6 {[%clk 0:02:58]} 2. Nc3 {[%clk 0:02:59]}  e5 {[%clk 0:02:57]} 3. Nf3 {[%clk 0:02:59]}  Nc6 {[%clk 0:02:57]} 4. g3 {[%clk 0:03:00]}  d5 {[%clk 0:02:54]} 5. cxd5 {[%clk 0:02:59]}  Nxd5 {[%clk 0:02:55]} 6. Bg2 {[%clk 0:03:00]}  Bc5 {[%clk 0:02:55]} 7. O-O {[%clk 0:03:00]}  O-O {[%clk 0:02:56]} 8. d3 {[%clk 0:02:57]}  Bb6 {[%clk 0:02:56]} 9. Bg5 {[%clk 0:02:50]}  f6 {[%clk 0:02:51]} 10. Nxd5 {[%clk 0:02:50]}  Qxd5 {[%clk 0:02:47]} 11. Bd2 {[%clk 0:02:49]}  Qf7 {[%clk 0:02:43]} 12. b4 {[%clk 0:02:48]}  Be6 {[%clk 0:02:41]} 13. a4 {[%clk 0:02:46]}  Bd5 {[%clk 0:02:38]} 14. e4 {[%clk 0:02:11]}  Be6 {[%clk 0:02:35]} 15. a5 {[%clk 0:02:11]}  Bd4 {[%clk 0:02:34]} 16. Rc1 {[%clk 0:02:11]}  a6 {[%clk 0:02:33]} 17. Rxc6 {[%clk 0:02:00]}  bxc6 {[%clk 0:02:31]} 18. Nxd4 {[%clk 0:02:00]}  exd4 {[%clk 0:02:32]} 19. Qc2 {[%clk 0:02:01]}  Qd7 {[%clk 0:02:23]} 20. Rc1 {[%clk 0:02:00]}  Bh3 {[%clk 0:02:19]} 21. Qxc6 {[%clk 0:01:54]}  Qxc6 {[%clk 0:02:19]} 22. Rxc6 {[%clk 0:01:55]}  Bxg2 {[%clk 0:02:20]} 23. Kxg2 {[%clk 0:01:55]}  Rf7 {[%clk 0:02:21]} 24. f4 {[%clk 0:01:53]}  Rd7 {[%clk 0:02:19]} 25. g4 {[%clk 0:01:50]}  Kf7 {[%clk 0:02:19]} 26. Kf3 {[%clk 0:01:49]}  Ke7 {[%clk 0:02:19]} 27. f5 {[%clk 0:01:48]}  Ra7 {[%clk 0:02:02]} 28. g5 {[%clk 0:01:46]}  Rd6 {[%clk 0:02:00]} 29. Rc4 {[%clk 0:01:43]}  Rb7 {[%clk 0:01:43]} 30. h4 {[%clk 0:01:43]}  Rd8 {[%clk 0:01:31]} 31. Be1 {[%clk 0:01:40]}  Ke8 {[%clk 0:01:21]} 32. Rc6 {[%clk 0:01:31]}  Rd6 {[%clk 0:01:19]} 33. Rc5 {[%clk 0:01:30]}  Rd8 {[%clk 0:01:06]} 34. Rc4 {[%clk 0:01:24]}  Ke7 {[%clk 0:01:04]} 35. Bf2 {[%clk 0:01:22]}  c5 {[%clk 0:00:52]} 36. bxc5 {[%clk 0:01:04]}  Rb3 {[%clk 0:00:53]} 37. Bxd4 {[%clk 0:00:51]}  Rxd3+ {[%clk 0:00:53]} 38. Be3 {[%clk 0:00:51]}  Ra3 {[%clk 0:00:49]} 39. c6 {[%clk 0:00:45]}  Rxa5 {[%clk 0:00:26]} 40. Bb6 {[%clk 0:00:39]}  Ra3+ {[%clk 0:00:23]} 41. Kf4 {[%clk 0:00:38]}  Rdd3 {[%clk 0:00:10]} 42. Bc5+ {[%clk 0:00:38]}  Kd8 {[%clk 0:00:10]} 43. c7+ {[%clk 0:00:35]}  Kc8 {[%clk 0:00:09]} 44. Bxa3 {[%clk 0:00:35]}  Rxa3 {[%clk 0:00:10]} 45. gxf6 {[%clk 0:00:34]}  gxf6 {[%clk 0:00:11]} 46. Rc6 {[%clk 0:00:35]}  a5 {[%clk 0:00:12]} 47. h5 {[%clk 0:00:31]}  a4 {[%clk 0:00:11]} 48. h6 {[%clk 0:00:29]}  Ra1 {[%clk 0:00:12]} 49. Rxf6 {[%clk 0:00:28]}  Kxc7 {[%clk 0:00:12]} 50. Ra6 {[%clk 0:00:27]}  a3 {[%clk 0:00:12]} 51. f6 {[%clk 0:00:25]}  Kb7 {[%clk 0:00:13]} 52. Ra4 {[%clk 0:00:25]}  Kb6 {[%clk 0:00:13]} 53. Ke5 {[%clk 0:00:25]}  Kb5 {[%clk 0:00:13]} 54. Ra8 {[%clk 0:00:19]}  Kb4 {[%clk 0:00:14]} 55. f7 {[%clk 0:00:20]}  Rf1 {[%clk 0:00:14]} 56. f8=Q+ {[%clk 0:00:20]}  Rxf8 {[%clk 0:00:14]} 57. Rxf8 {[%clk 0:00:20]}  Kb3 {[%clk 0:00:15]} 58. Rb8+ {[%clk 0:00:21]}  Ka2 {[%clk 0:00:16]} 59. Ra8 {[%clk 0:00:22]}  Ka1 {[%clk 0:00:17]} 60. Rxa3+ {[%clk 0:00:21]}  Kb2 {[%clk 0:00:17]} 61. Rg3 {[%clk 0:00:22]} 1-0

[Event "January 9 Early 2024"]
[Site "https://www.chess.com"]
[Date "2024.01.11"]
[Round "8"]
[White "Spitzl, Vinzent"]
[Black "Skurikhin, Dmitrij"]
[Result "0-1"]
[Board "172"]
[TimeControl "180+1"]
[WhiteFideId "12901253"]
[BlackFideId "4161297"]
[WhiteElo "2441"]
[BlackElo "2218"]
[WhiteTeam "GER"]
[BlackTeam "RUS"]
[WhiteClock "0:00:04"]
[BlackClock "0:00:07"]

1. e4 {[%clk 0:03:00]}  c6 {[%clk 0:02:58]} 2. d4 {[%clk 0:03:00]}  d5 {[%clk 0:02:57]} 3. exd5 {[%clk 0:03:00]}  cxd5 {[%clk 0:02:56]} 4. Bd3 {[%clk 0:03:01]}  Nc6 {[%clk 0:02:54]} 5. c3 {[%clk 0:03:00]}  Nf6 {[%clk 0:02:53]} 6. Bf4 {[%clk 0:02:59]}  Bg4 {[%clk 0:02:52]} 7. Qb3 {[%clk 0:02:58]}  Qc8 {[%clk 0:02:50]} 8. Nd2 {[%clk 0:02:56]}  e6 {[%clk 0:02:49]} 9. h3 {[%clk 0:02:56]}  Bh5 {[%clk 0:02:48]} 10. Ngf3 {[%clk 0:02:56]}  Be7 {[%clk 0:02:47]} 11. O-O {[%clk 0:02:50]}  O-O {[%clk 0:02:46]} 12. Rfe1 {[%clk 0:02:49]}  a6 {[%clk 0:02:42]} 13. Ne5 {[%clk 0:02:40]}  Bg6 {[%clk 0:02:32]} 14. Nxg6 {[%clk 0:02:32]}  hxg6 {[%clk 0:02:32]} 15. Nf3 {[%clk 0:02:32]}  b5 {[%clk 0:02:31]} 16. a3 {[%clk 0:02:32]}  Na5 {[%clk 0:02:28]} 17. Qd1 {[%clk 0:02:31]}  Nc4 {[%clk 0:02:29]} 18. Qe2 {[%clk 0:02:31]}  Qb7 {[%clk 0:02:24]} 19. Ne5 {[%clk 0:02:24]}  Rac8 {[%clk 0:02:16]} 20. g4 {[%clk 0:02:03]}  Nxe5 {[%clk 0:01:32]} 21. dxe5 {[%clk 0:01:59]}  Nd7 {[%clk 0:01:29]} 22. h4 {[%clk 0:01:55]}  Bxh4 {[%clk 0:01:24]} 23. g5 {[%clk 0:01:54]}  Nc5 {[%clk 0:01:20]} 24. Bc2 {[%clk 0:01:50]}  f5 {[%clk 0:00:57]} 25. Kh2 {[%clk 0:00:56]}  Kf7 {[%clk 0:00:55]} 26. Rh1 {[%clk 0:00:49]}  Rh8 {[%clk 0:00:45]} 27. Kg1 {[%clk 0:00:50]}  Qe7 {[%clk 0:00:41]} 28. Qe3 {[%clk 0:00:44]}  Rh5 {[%clk 0:00:26]} 29. Kf1 {[%clk 0:00:26]}  Bxg5 {[%clk 0:00:19]} 30. Rg1 {[%clk 0:00:20]}  Bxf4 {[%clk 0:00:18]} 31. Qxf4 {[%clk 0:00:21]}  Qh4 {[%clk 0:00:17]} 32. Qe3 {[%clk 0:00:16]}  g5 {[%clk 0:00:13]} 33. b4 {[%clk 0:00:15]}  Ne4 {[%clk 0:00:12]} 34. Bxe4 {[%clk 0:00:15]}  dxe4 {[%clk 0:00:12]} 35. Qa7+ {[%clk 0:00:12]}  Kg8 {[%clk 0:00:11]} 36. Rd1 {[%clk 0:00:09]}  Qh3+ {[%clk 0:00:10]} 37. Ke2 {[%clk 0:00:09]}  Qf3+ {[%clk 0:00:10]} 38. Ke1 {[%clk 0:00:10]}  Rxc3 {[%clk 0:00:10]} 39. Qa8+ {[%clk 0:00:04]}  Kh7 {[%clk 0:00:09]} 40. Qe8 {[%clk 0:00:05]}  Rh1 {[%clk 0:00:08]} 41. Rxh1+ {[%clk 0:00:03]}  Qxh1+ {[%clk 0:00:08]} 42. Ke2 {[%clk 0:00:04]}  Qf3+ {[%clk 0:00:08]} 43. Ke1 {[%clk 0:00:04]}  e3 {[%clk 0:00:07]} 0-1

[Event "January 9 Early 2024"]
[Site "https://www.chess.com"]
[Date "2024.01.11"]
[Round "8"]
[White "Sultanbek, Zeinep"]
[Black "Perez Gormaz, Matias"]
[Result "0-1"]
[Board "173"]
[TimeControl "180+1"]
[WhiteFideId "13710419"]
[BlackFideId "3406342"]
[WhiteElo "2299"]
[BlackElo "2643"]
[WhiteTeam "KAZ"]
[BlackTeam "CHI"]
[WhiteClock "0:00:06"]
[BlackClock "0:00:03"]

1. d4 {[%clk 0:03:00]}  a6 {[%clk 0:02:54]} 2. c4 {[%clk 0:02:56]}  b5 {[%clk 0:02:54]} 3. e4 {[%clk 0:02:56]}  bxc4 {[%clk 0:02:54]} 4. Bxc4 {[%clk 0:02:57]}  Bb7 {[%clk 0:02:55]} 5. Nc3 {[%clk 0:02:56]}  e6 {[%clk 0:02:55]} 6. Nf3 {[%clk 0:02:48]}  Nf6 {[%clk 0:02:55]} 7. Qe2 {[%clk 0:02:44]}  Bb4 {[%clk 0:02:50]} 8. Bd3 {[%clk 0:02:13]}  d5 {[%clk 0:02:46]} 9. e5 {[%clk 0:02:08]}  Ne4 {[%clk 0:02:47]} 10. Bd2 {[%clk 0:02:06]}  Nxd2 {[%clk 0:02:46]} 11. Nxd2 {[%clk 0:02:01]}  Be7 {[%clk 0:02:44]} 12. Qg4 {[%clk 0:02:00]}  O-O {[%clk 0:02:44]} 13. h4 {[%clk 0:02:00]}  c5 {[%clk 0:02:43]} 14. Nf3 {[%clk 0:01:51]}  h6 {[%clk 0:02:09]} 15. Qf4 {[%clk 0:01:44]}  Nc6 {[%clk 0:01:58]} 16. g4 {[%clk 0:01:34]}  Nxd4 {[%clk 0:01:58]} 17. Nxd4 {[%clk 0:01:34]}  cxd4 {[%clk 0:01:59]} 18. Qxd4 {[%clk 0:01:34]}  Bxh4 {[%clk 0:01:56]} 19. O-O-O {[%clk 0:01:34]}  Rc8 {[%clk 0:01:50]} 20. f4 {[%clk 0:01:33]}  Be7 {[%clk 0:01:43]} 21. Bc2 {[%clk 0:01:28]}  Rc4 {[%clk 0:00:41]} 22. Qd3 {[%clk 0:01:25]}  Re4 {[%clk 0:00:42]} 23. Nxe4 {[%clk 0:01:20]}  dxe4 {[%clk 0:00:42]} 24. Qxd8 {[%clk 0:01:19]}  Bxd8 {[%clk 0:00:40]} 25. Rd7 {[%clk 0:01:07]}  Bd5 {[%clk 0:00:39]} 26. Bb3 {[%clk 0:01:07]}  Bc6 {[%clk 0:00:20]} 27. Rd6 {[%clk 0:01:06]}  Bb5 {[%clk 0:00:20]} 28. a4 {[%clk 0:01:02]}  Be2 {[%clk 0:00:16]} 29. Bd1 {[%clk 0:01:01]}  Bd3 {[%clk 0:00:13]} 30. Bc2 {[%clk 0:01:00]}  Be7 {[%clk 0:00:08]} 31. Rd7 {[%clk 0:00:55]}  Rc8 {[%clk 0:00:08]} 32. Rh2 {[%clk 0:00:48]}  Bh4 {[%clk 0:00:09]} 33. Kb1 {[%clk 0:00:45]}  Bg3 {[%clk 0:00:09]} 34. Rg2 {[%clk 0:00:45]}  Bxf4 {[%clk 0:00:09]} 35. Bxd3 {[%clk 0:00:45]}  exd3 {[%clk 0:00:09]} 36. Rxd3 {[%clk 0:00:21]}  Bxe5 {[%clk 0:00:09]} 37. Rc2 {[%clk 0:00:21]}  Rb8 {[%clk 0:00:07]} 38. Ka2 {[%clk 0:00:22]}  g6 {[%clk 0:00:05]} 39. Ka3 {[%clk 0:00:20]}  Kg7 {[%clk 0:00:06]} 40. b4 {[%clk 0:00:20]}  h5 {[%clk 0:00:05]} 41. gxh5 {[%clk 0:00:20]}  gxh5 {[%clk 0:00:06]} 42. Rc5 {[%clk 0:00:21]}  Bf6 {[%clk 0:00:04]} 43. Rxh5 {[%clk 0:00:19]}  Be7 {[%clk 0:00:05]} 44. Rg3+ {[%clk 0:00:17]}  Kf6 {[%clk 0:00:04]} 45. Rf3+ {[%clk 0:00:18]}  Kg6 {[%clk 0:00:04]} 46. Re5 {[%clk 0:00:06]}  Rxb4 {[%clk 0:00:04]} 47. a5 {[%clk 0:00:06]}  Rb5+ {[%clk 0:00:03]} 0-1

[Event "January 9 Early 2024"]
[Site "https://www.chess.com"]
[Date "2024.01.11"]
[Round "8"]
[White "Bogumil, Tatiana"]
[Black "Mazurkiewicz, Michal"]
[Result "0-1"]
[Board "177"]
[TimeControl "180+1"]
[WhiteFideId "4110579"]
[BlackFideId "1124943"]
[WhiteElo "2124"]
[BlackElo "2451"]
[WhiteTeam "RUS"]
[BlackTeam "POL"]
[WhiteClock "0:00:02"]
[BlackClock "0:00:06"]

1. Nf3 {[%clk 0:02:59]}  Nf6 {[%clk 0:02:59]} 2. c4 {[%clk 0:02:43]}  g6 {[%clk 0:02:58]} 3. b3 {[%clk 0:02:39]}  Bg7 {[%clk 0:02:57]} 4. Bb2 {[%clk 0:02:39]}  O-O {[%clk 0:02:57]} 5. g3 {[%clk 0:02:40]}  d6 {[%clk 0:02:57]} 6. d4 {[%clk 0:02:39]}  Re8 {[%clk 0:02:55]} 7. d5 {[%clk 0:02:39]}  c6 {[%clk 0:02:52]} 8. dxc6 {[%clk 0:02:37]}  Nxc6 {[%clk 0:02:52]} 9. Bg2 {[%clk 0:02:38]}  d5 {[%clk 0:02:38]} 10. cxd5 {[%clk 0:02:30]}  Qxd5 {[%clk 0:02:30]} 11. Qxd5 {[%clk 0:02:23]}  Nxd5 {[%clk 0:02:31]} 12. Bxg7 {[%clk 0:02:23]}  Kxg7 {[%clk 0:02:32]} 13. O-O {[%clk 0:02:20]}  e5 {[%clk 0:02:32]} 14. h3 {[%clk 0:02:16]}  f6 {[%clk 0:02:29]} 15. Rc1 {[%clk 0:02:12]}  Be6 {[%clk 0:02:25]} 16. Na3 {[%clk 0:02:12]}  Rad8 {[%clk 0:02:15]} 17. Nb5 {[%clk 0:01:51]}  a6 {[%clk 0:02:12]} 18. Nc3 {[%clk 0:01:51]}  e4 {[%clk 0:01:52]} 19. Nxe4 {[%clk 0:01:34]}  Bxh3 {[%clk 0:01:27]} 20. Nxf6 {[%clk 0:01:31]}  Kxf6 {[%clk 0:01:17]} 21. Bxh3 {[%clk 0:01:25]}  Rxe2 {[%clk 0:01:17]} 22. Bf1 {[%clk 0:01:13]}  Rb2 {[%clk 0:01:11]} 23. Rcb1 {[%clk 0:01:00]}  Rxb1 {[%clk 0:01:08]} 24. Rxb1 {[%clk 0:01:00]}  Nc3 {[%clk 0:01:07]} 25. Rb2 {[%clk 0:00:56]}  Rd1 {[%clk 0:00:57]} 26. Kg2 {[%clk 0:00:55]}  Nb4 {[%clk 0:00:40]} 27. a3 {[%clk 0:00:48]}  Nd3 {[%clk 0:00:40]} 28. Rc2 {[%clk 0:00:42]}  Nd5 {[%clk 0:00:40]} 29. Rd2 {[%clk 0:00:35]}  Rxd2 {[%clk 0:00:39]} 30. Nxd2 {[%clk 0:00:35]}  Ne1+ {[%clk 0:00:37]} 31. Kg1 {[%clk 0:00:34]}  Ke5 {[%clk 0:00:36]} 32. Be2 {[%clk 0:00:22]}  Kd4 {[%clk 0:00:32]} 33. Nf3+ {[%clk 0:00:20]}  Kc3 {[%clk 0:00:30]} 34. Nxe1 {[%clk 0:00:19]}  Kxb3 {[%clk 0:00:29]} 35. Bf3 {[%clk 0:00:18]}  Nc3 {[%clk 0:00:06]} 36. Bxb7 {[%clk 0:00:16]}  a5 {[%clk 0:00:07]} 37. Nd3 {[%clk 0:00:07]}  Kxa3 {[%clk 0:00:07]} 38. Bc6 {[%clk 0:00:05]}  Kb3 {[%clk 0:00:07]} 39. Be8 {[%clk 0:00:04]}  Kc4 {[%clk 0:00:05]} 40. Nb2+ {[%clk 0:00:03]}  Kb3 {[%clk 0:00:05]} 41. Nd3 {[%clk 0:00:03]}  Kc4 {[%clk 0:00:06]} 42. Ne5+ {[%clk 0:00:02]}  Kb4 {[%clk 0:00:06]} 43. Ng4 {[%clk 0:00:02]}  a4 {[%clk 0:00:06]} 44. Nf6 {[%clk 0:00:02]}  a3 {[%clk 0:00:06]} 0-1

[Event "January 9 Early 2024"]
[Site "https://www.chess.com"]
[Date "2024.01.11"]
[Round "8"]
[White "Goryachkina, Aleksandra"]
[Black "Starozhilov, Leonid"]
[Result "0-1"]
[Board "178"]
[TimeControl "180+1"]
[WhiteFideId "4147103"]
[BlackFideId "14106752"]
[WhiteElo "2653"]
[BlackElo "2780"]
[WhiteTeam "FID"]
[BlackTeam "UKR"]
[WhiteClock "0:00:04"]
[BlackClock "0:00:04"]

1. e4 {[%clk 0:02:59]}  g6 {[%clk 0:02:59]} 2. d4 {[%clk 0:02:59]}  Bg7 {[%clk 0:03:00]} 3. Nc3 {[%clk 0:02:59]}  d6 {[%clk 0:03:00]} 4. Nf3 {[%clk 0:02:57]}  Nf6 {[%clk 0:03:00]} 5. Be3 {[%clk 0:02:54]}  O-O {[%clk 0:02:57]} 6. Qd2 {[%clk 0:02:54]}  Bg4 {[%clk 0:02:57]} 7. O-O-O {[%clk 0:02:47]}  Nc6 {[%clk 0:02:53]} 8. Bh6 {[%clk 0:02:35]}  e5 {[%clk 0:02:33]} 9. Bxg7 {[%clk 0:02:22]}  Kxg7 {[%clk 0:02:34]} 10. dxe5 {[%clk 0:02:17]}  dxe5 {[%clk 0:02:32]} 11. Qg5 {[%clk 0:02:13]}  Qe7 {[%clk 0:01:58]} 12. h3 {[%clk 0:01:57]}  Bxf3 {[%clk 0:01:56]} 13. gxf3 {[%clk 0:01:57]}  Rad8 {[%clk 0:01:52]} 14. Bc4 {[%clk 0:01:55]}  Nd4 {[%clk 0:01:19]} 15. f4 {[%clk 0:01:38]}  h6 {[%clk 0:01:19]} 16. Qh4 {[%clk 0:01:34]}  exf4 {[%clk 0:01:07]} 17. Qxf4 {[%clk 0:01:30]}  b5 {[%clk 0:00:54]} 18. Nxb5 {[%clk 0:00:57]}  Nxb5 {[%clk 0:00:48]} 19. Bxb5 {[%clk 0:00:57]}  Qxe4 {[%clk 0:00:47]} 20. Qg3 {[%clk 0:00:28]}  Qb4 {[%clk 0:00:30]} 21. Bd3 {[%clk 0:00:16]}  Rb8 {[%clk 0:00:30]} 22. Qe5 {[%clk 0:00:13]}  Rfe8 {[%clk 0:00:30]} 23. Qc3 {[%clk 0:00:14]}  Qxc3 {[%clk 0:00:24]} 24. bxc3 {[%clk 0:00:15]}  Nd5 {[%clk 0:00:21]} 25. Kd2 {[%clk 0:00:13]}  Nf4 {[%clk 0:00:21]} 26. Rb1 {[%clk 0:00:08]}  Rb6 {[%clk 0:00:20]} 27. h4 {[%clk 0:00:07]}  h5 {[%clk 0:00:19]} 28. a4 {[%clk 0:00:07]}  a5 {[%clk 0:00:11]} 29. Rxb6 {[%clk 0:00:05]}  cxb6 {[%clk 0:00:11]} 30. Rb1 {[%clk 0:00:06]}  Re6 {[%clk 0:00:10]} 31. c4 {[%clk 0:00:06]}  Rf6 {[%clk 0:00:09]} 32. Kc3 {[%clk 0:00:06]}  Ng2 {[%clk 0:00:08]} 33. Be4 {[%clk 0:00:06]}  Nxh4 {[%clk 0:00:07]} 34. c5 {[%clk 0:00:06]}  bxc5 {[%clk 0:00:05]} 35. Rb5 {[%clk 0:00:05]}  Rf4 {[%clk 0:00:05]} 36. Bd5 {[%clk 0:00:05]}  Rxa4 {[%clk 0:00:05]} 37. Rxc5 {[%clk 0:00:05]}  Rf4 {[%clk 0:00:05]} 38. Rxa5 {[%clk 0:00:05]}  Rxf2 {[%clk 0:00:04]} 39. Kd3 {[%clk 0:00:05]}  Ng2 {[%clk 0:00:04]} 40. Bxg2 {[%clk 0:00:03]}  Rxg2 {[%clk 0:00:04]} 41. c4 {[%clk 0:00:04]}  h4 {[%clk 0:00:03]} 42. c5 {[%clk 0:00:04]}  h3 {[%clk 0:00:03]} 43. c6 {[%clk 0:00:04]}  h2 {[%clk 0:00:04]} 0-1